bitfinex-derivatives/quotes_ETHF0:USTF0_20260203
["timestamp","ask_amount","ask_price","bid_price","bid_amount"]
[1770145915491,3.703,2167.8,2164.7,6.29127093]
[1770145915685,0.23092,2167.7,2164.7,6.29127093]
[1770145915889,4.6536,2167.0,2164.7,6.29127093]
[1770145916186,6.44757496,2166.8,2164.7,6.29127093]
[1770145916391,6.44757496,2166.6,2164.7,0.00549835]
[1770145916695,6.44757496,2166.4,2164.7,0.00549835]
[1770145916894,6.44757496,2165.8,2164.7,0.00549835]
[1770145917087,11.10117496,2165.8,2164.7,0.00549835]
[1770145917287,4.6536,2165.4,2164.7,0.00549835]
[1770145917582,4.6536,2165.7,2164.7,0.00549835]
[1770145917784,4.6536,2165.6,2164.7,0.00549835]
[1770145918184,6.44757496,2165.8,2164.7,0.00549835]
[1770145918484,11.10117496,2165.8,2164.7,0.00549835]
[1770145918682,4.6536,2165.5,2164.7,0.00549835]
[1770145919086,6.44757496,2165.8,2164.7,0.00549835]
[1770145919692,4.6536,2165.4,2164.7,0.00549835]
[1770145919987,6.44757496,2165.8,2164.7,0.00549835]
[1770145920293,11.10117496,2165.1,2164.7,0.00549835]
[1770145920588,6.44757496,2165.0,2163.2,6.74578366]
[1770145920890,0.23113,2165.7,2162.3,3.7]
[1770145920891,6.44757496,2164.6,2162.3,3.7]
[1770145921186,6.44757496,2164.4,2162.6,6.51438366]
[1770145921386,6.44757496,2163.7,2162.6,0.00409394]
[1770145921589,0.00497289,2164.4,2163.1,6.74579366]
[1770145921788,0.00497289,2164.4,2163.4,0.23137]
[1770145921989,6.44757496,2166.6,2164.1,6.74568366]
[1770145922186,0.23102,2166.8,2163.1,4.315]
[1770145922187,6.44757496,2165.6,2163.4,0.23138]
[1770145922393,6.44757496,2164.9,2163.3,6.51438366]
[1770145922598,6.44757496,2165.4,2163.7,6.74572366]
[1770145922890,6.4530885,2165.4,2163.7,6.51438366]
[1770145923088,4.6536,2164.2,2162.7,6.51438366]
[1770145923295,4.6536,2164.2,2162.6,0.00409394]
[1770145923296,6.67887496,2164.2,2162.6,0.00409394]
[1770145923494,6.44757496,2164.0,2162.6,0.00409394]
[1770145923694,6.44757496,2163.8,2162.6,0.00409394]
[1770145923894,6.45251877,2163.8,2162.6,0.00409394]
[1770145924196,4.6536,2163.5,2162.6,0.00409394]
[1770145924391,4.6536,2163.6,2162.6,0.00409394]
[1770145924585,6.44757496,2163.7,2162.6,0.00409394]
[1770145924991,4.6536,2163.3,2162.6,0.00409394]
[1770145925191,4.6536,2163.3,2160.9,7.23151288]
[1770145925192,11.10117496,2162.7,2161.2,6.51438366]
[1770145925396,6.45251877,2163.8,2162.1,6.74590366]
[1770145925591,6.45251877,2163.8,2162.1,6.74589366]
[1770145925796,6.44757496,2164.8,2162.7,6.51438366]
[1770145926091,6.44757496,2166.2,2164.5,6.51438366]
[1770145926292,6.44757496,2166.2,2164.6,3.93125]
[1770145926498,6.44757496,2165.7,2164.6,3.7]
[1770145926891,6.44757496,2166.2,2164.7,6.51438366]
[1770145927091,6.44757496,2166.2,2164.8,6.74561366]
[1770145927288,6.44757496,2166.1,2164.6,0.00456977]
[1770145927588,6.44757496,2166.1,2164.7,0.23124]
[1770145927794,6.44757496,2166.1,2164.6,6.51895343]
[1770145927997,4.6536,2166.0,2164.6,6.51895343]
[1770145928191,6.45173501,2166.1,2164.6,6.51895343]
[1770145928499,0.00416005,2166.1,2164.6,6.51895343]
[1770145928694,6.44757496,2165.9,2164.6,0.00456977]
[1770145929393,0.00416005,2166.1,2165.0,6.51438366]
[1770145929593,6.44757496,2166.9,2165.6,0.23114]
[1770145929895,6.44757496,2167.4,2165.6,6.51438366]
[1770145930397,4.6536,2165.9,2164.6,0.00456977]
[1770145930593,0.00454482,2165.9,2164.7,6.51438366]
[1770145930797,4.048,2167.9,2164.7,6.51438366]
[1770145930798,6.44757496,2167.8,2165.6,6.51438366]
[1770145930994,3.698,2168.2,2165.1,6.51438366]
[1770145930995,6.44757496,2167.0,2165.1,6.51438366]
[1770145931198,3.76900125,2169.0,2165.1,6.51438366]
[1770145931199,6.44757496,2168.1,2166.4,0.23105]
[1770145931397,6.44757496,2168.4,2166.8,6.74539366]
[1770145931596,6.44757496,2168.4,2166.8,6.51438366]
[1770145931797,6.44757496,2168.2,2166.8,0.00427152]
[1770145932001,6.44757496,2167.4,2166.8,0.00427152]
[1770145932294,6.44757496,2167.9,2166.8,0.00090257]
[1770145932496,6.44757496,2167.5,2166.8,0.00090257]
[1770145932895,4.6536,2166.9,2165.6,6.51438366]
[1770145933094,6.44757496,2168.0,2166.3,6.74544366]
[1770145933295,6.44757496,2168.0,2165.8,6.51438366]
[1770145933500,6.44757496,2167.6,2165.9,0.16370049]
[1770145933799,6.44757496,2167.2,2165.9,0.00449071]
[1770145933995,3.697,2167.5,2165.9,0.00449071]
[1770145934195,4.18183,2167.4,2165.9,0.00449071]
[1770145934397,6.44757496,2167.5,2165.9,0.00449071]
[1770145934694,4.18183,2167.4,2165.9,0.00449071]
[1770145934998,6.44757496,2167.3,2165.9,0.00449071]
[1770145935396,6.44757496,2166.9,2165.9,0.00449071]
[1770145935993,6.44757496,2167.4,2166.0,0.2311]
[1770145936196,10.14896496,2167.3,2165.9,6.51887437]
[1770145936402,6.44757496,2167.3,2166.0,0.16248654]
[1770145936596,6.44757496,2167.1,2165.9,0.00449071]
[1770145936803,6.44757496,2168.3,2166.3,6.74544366]
[1770145937000,6.44757496,2168.7,2167.3,0.23096]
[1770145937200,6.44757496,2168.7,2167.4,0.16193504]
[1770145937402,6.44757496,2168.5,2167.2,6.51438366]
[1770145937600,6.44757496,2168.5,2166.7,6.51438366]
[1770145937796,6.44757496,2168.4,2166.8,0.16223591]
[1770145938005,6.44757496,2168.4,2166.7,6.51438366]
[1770145938206,6.45222274,2168.4,2166.8,6.67404667]
[1770145938502,6.44757496,2168.9,2167.4,6.51438366]
[1770145938705,6.44757496,2169.4,2167.6,6.74531366]
[1770145938902,6.44757496,2169.4,2167.7,6.67404667]
[1770145939100,3.695,2170.8,2169.2,6.51438366]
[1770145939303,6.44757496,2171.3,2169.3,6.67404667]
[1770145939507,0.23015,2175.0,2171.5,0.23051]
[1770145939704,0.23005,2175.9,2172.2,6.74481366]
[1770145939705,3.695,2175.8,2172.2,6.74481366]
[1770145940005,3.695,2175.8,2171.7,7.83009931]
[1770145940006,0.00575149,2175.0,2172.0,6.51438366]
[1770145940202,0.00575149,2175.0,2172.2,9.11228472]
[1770145940203,0.23016,2174.9,2172.2,9.11228472]
[1770145940507,3.70139,2174.3,2171.9,6.81359383]
[1770145940704,3.70139,2174.7,2172.1,6.81359383]
[1770145941010,3.70139,2174.0,2171.8,6.81359383]
[1770145941305,3.70139,2174.0,2171.5,0.00487453]
[1770145941306,3.70139,2173.0,2171.5,0.00487453]
[1770145941505,6.832401,2172.9,2171.5,0.00487453]
[1770145941702,0.00590574,2173.0,2171.6,6.81359383]
[1770145942007,6.832401,2173.0,2171.5,0.00487453]
[1770145942208,6.832401,2172.2,2170.6,6.81359383]
[1770145942508,6.832401,2172.2,2170.2,6.81359383]
[1770145942702,6.832401,2173.6,2171.0,6.81359383]
[1770145942903,6.832401,2174.3,2171.5,6.81359383]
[1770145943104,6.832401,2174.3,2172.1,6.81359383]
[1770145943405,6.832401,2173.7,2172.1,0.00430286]
[1770145943608,0.00520542,2174.3,2172.5,6.81359383]
[1770145943809,6.832401,2174.7,2172.9,6.81359383]
[1770145944009,6.832401,2175.2,2172.9,6.81359383]
[1770145944206,6.832401,2175.0,2172.9,6.81359383]
[1770145944407,6.832401,2174.6,2172.9,6.81359383]
[1770145944915,0.42076369,2174.4,2172.9,6.81359383]
[1770145945106,6.832401,2175.2,2173.3,0.23032]
[1770145945306,0.22196456,2176.6,2174.8,6.81359383]
[1770145945607,6.832401,2177.2,2175.3,6.81359383]
[1770145946015,6.832401,2177.2,2174.9,7.77942092]
[1770145946016,6.832401,2176.1,2174.9,2.9538]
[1770145946207,6.832401,2176.1,2174.9,2.88843604]
[1770145946208,6.832401,2175.9,2174.9,2.88843604]
[1770145946404,6.832401,2175.3,2172.9,6.81359383]
[1770145946608,6.832401,2174.4,2172.4,6.81359383]
[1770145946811,7.062641,2174.1,2172.4,6.81359383]
[1770145947005,6.832401,2173.6,2171.6,6.81359383]
[1770145947209,6.832401,2173.6,2170.2,25.828]
[1770145947210,6.832401,2172.8,2170.6,6.81359383]
[1770145947415,6.832401,2172.6,2170.6,6.8191895]
[1770145947609,0.00351616,2172.8,2170.9,6.81359383]
[1770145947610,0.64624197,2172.3,2170.9,6.81359383]
[1770145947907,0.00351616,2172.8,2171.4,6.81359383]
[1770145948112,6.832401,2173.9,2172.0,7.04405383]
[1770145948411,6.832401,2173.5,2171.5,6.81359383]
[1770145948605,6.832401,2173.5,2171.0,3.69533731]
[1770145948606,6.832401,2173.4,2170.7,6.81359383]
[1770145948912,6.832401,2172.8,2170.7,6.81359383]
[1770145949110,0.00499882,2172.8,2171.3,6.81359383]
[1770145949307,0.22992,2177.2,2172.5,3.69533731]
[1770145949308,6.832401,2174.7,2172.5,3.69533731]
[1770145949508,0.64624197,2174.5,2173.0,6.81359383]
[1770145949709,6.832401,2174.4,2172.6,3.688]
[1770145950016,0.64624197,2173.5,2171.8,6.81359383]
[1770145950210,0.23008,2175.7,2171.7,0.23049]
[1770145950211,7.062611,2174.4,2172.5,6.81359383]
[1770145950512,7.062611,2174.4,2172.6,3.0219]
[1770145950513,0.00420305,2173.5,2172.6,3.0219]
[1770145950915,6.832401,2173.4,2172.6,3.0219]
[1770145951614,7.062751,2173.1,2171.7,0.003836]
[1770145951806,7.062791,2172.8,2171.7,0.003836]
[1770145952009,7.062811,2172.5,2170.9,6.81359383]
[1770145952208,7.062811,2172.5,2170.5,6.81359383]
[1770145952615,6.832401,2173.0,2170.8,6.81359383]
[1770145952812,0.00420305,2173.5,2171.6,7.04409383]
[1770145953010,0.00420305,2173.5,2171.8,7.04407383]
[1770145953410,0.22985,2177.9,2172.2,3.69533731]
[1770145953611,6.832401,2174.9,2172.5,7.04399383]
[1770145953916,7.062681,2173.8,2172.1,6.81359383]
[1770145954324,6.832401,2173.5,2171.6,0.00378964]
[1770145954617,7.062771,2172.9,2171.6,0.00378964]
[1770145954818,3.686,2172.8,2171.6,0.00378964]
[1770145955014,6.832401,2173.4,2171.6,6.81738347]
[1770145955216,0.00566135,2173.5,2171.9,7.04406383]
[1770145955420,0.00566135,2173.5,2171.9,6.81359383]
[1770145956011,0.00566135,2173.5,2172.1,6.81359383]
[1770145957216,0.00566135,2173.5,2171.7,0.9066]
[1770145957217,6.832401,2175.2,2173.4,0.23031]
[1770145957417,0.22981,2178.2,2173.4,3.69533731]
[1770145957614,3.686,2177.0,2174.2,6.81359383]
[1770145957916,3.69533731,2176.7,2173.7,6.81359383]
[1770145958120,3.69533731,2175.7,2173.7,0.00507537]
[1770145958313,3.685,2176.2,2174.0,6.81359383]
[1770145958522,0.23005,2176.0,2174.0,6.81359383]
[1770145958719,0.23005,2176.0,2173.7,0.00507537]
[1770145958720,0.23008,2175.6,2173.7,0.00507537]
[1770145958924,3.69533731,2175.4,2173.7,0.00507537]
[1770145959223,0.2301,2175.4,2173.7,0.00507537]
[1770145959422,6.832401,2175.5,2173.7,0.00507537]
[1770145959625,6.832401,2175.3,2173.7,0.00507537]
[1770145959829,6.832401,2175.3,2173.7,6.8186692]
[1770145960023,6.832401,2175.7,2174.0,0.23025]
[1770145960230,6.832401,2175.7,2174.0,7.04384383]
[1770145960530,6.832401,2176.2,2174.5,6.81359383]
[1770145961633,0.23,2176.4,2174.5,6.81359383]
[1770145961828,13.7003857,2181.0,2174.5,6.81359383]
[1770145961829,6.832401,2177.7,2175.6,6.81359383]
[1770145962033,3.684,2178.6,2174.6,5.1285503]
[1770145962034,10.516401,2178.6,2176.5,7.04357383]
[1770145962225,10.516401,2178.6,2177.0,6.81359383]
[1770145962431,6.832401,2177.7,2175.9,6.81359383]
[1770145962732,0.22997,2176.7,2174.9,6.81359383]
[1770145962933,0.22999,2176.5,2174.9,6.81695696]
[1770145963234,10.516401,2176.6,2174.9,6.81695696]
[1770145963431,10.746381,2176.6,2174.9,6.81695696]
[1770145963626,7.062421,2176.2,2174.9,0.00336313]
[1770145964129,4.046,2176.1,2173.9,6.16490933]
[1770145964327,6.57167539,2176.1,2173.9,6.16490933]
[1770145964527,6.57167539,2176.1,2174.2,6.16490933]
[1770145964733,6.57167539,2176.1,2173.7,16.10694084]
[1770145964930,6.57167539,2176.6,2174.8,6.16490933]
[1770145965232,6.57607374,2176.7,2175.1,6.16490933]
[1770145965627,0.00439835,2176.7,2175.3,6.16490933]
[1770145965835,0.00439835,2176.7,2174.8,6.16987562]
[1770145965836,6.57607374,2176.7,2174.8,6.16987562]
[1770145966131,6.57167539,2176.0,2174.8,0.00496629]
[1770145966331,0.22999,2176.5,2174.8,0.00496629]
[1770145966332,3.682,2175.9,2174.8,0.00496629]
[1770145966530,1.63537834,2176.5,2174.8,0.00496629]
[1770145966735,3.682,2176.4,2174.8,2.55592261]
[1770145967033,0.00439835,2176.7,2174.8,2.55592261]
[1770145967231,0.00439835,2176.7,2175.0,2.55095632]
[1770145967427,0.22998,2176.6,2175.0,2.55095632]
[1770145967828,0.00439835,2176.7,2175.0,2.55095632]
[1770145968034,0.22986,2177.7,2174.9,3.69533731]
[1770145968035,1.50684017,2178.0,2175.8,2.55095632]
[1770145968331,1.73638017,2180.8,2178.3,2.78074632]
[1770145968538,1.50684017,2179.9,2177.9,2.55095632]
[1770145968729,0.22968,2179.4,2177.9,2.55095632]
[1770145968928,1.50684017,2179.3,2176.9,2.55095632]
[1770145969134,0.22986,2177.8,2176.9,2.08754632]
[1770145969337,1.9775022,2178.4,2175.8,3.92538731]
[1770145969532,0.22982,2178.1,2176.1,2.52360912]
[1770145969736,3.681,2178.5,2176.3,2.52360912]
[1770145969937,0.22983,2178.0,2176.3,0.00393103]
[1770145970235,1.9775022,2177.6,2176.3,0.00393103]
[1770145970431,3.681,2177.5,2175.3,0.14377149]
[1770145970637,3.681,2177.5,2175.4,2.4866871]
[1770145970831,4.05422392,2178.5,2175.4,2.4866871]
[1770145970832,0.00322392,2178.5,2176.1,2.4866871]
[1770145971038,0.2297,2179.2,2177.0,2.4866871]
[1770145971338,7.37533731,2179.4,2177.0,2.4866871]
[1770145971534,3.69533731,2178.9,2177.0,2.4866871]
[1770145971731,0.22974,2178.8,2177.0,2.4866871]
[1770145971934,0.22978,2178.5,2177.0,2.4866871]
[1770145972135,0.22935,2182.6,2179.7,2.4866871]
[1770145972331,1.5271995,2183.8,2180.5,2.4866871]
[1770145972530,0.22921,2183.9,2181.1,2.4866871]
[1770145972531,1.5271995,2183.7,2181.1,2.4866871]
[1770145972736,1.5271995,2183.6,2181.1,2.4866871]
[1770145973036,1.5271995,2183.4,2181.1,2.4866871]
[1770145973236,1.5271995,2183.4,2181.1,2.49171766]
[1770145973434,1.77829344,2183.2,2181.1,2.49171766]
[1770145973635,0.00349848,2183.6,2181.5,3.69533731]
[1770145973834,1.54566552,2183.6,2181.6,2.37889393]
[1770145974044,2.36040472,2183.0,2181.1,0.00503056]
[1770145974333,2.36040472,2182.8,2181.1,0.00503056]
[1770145974533,2.36040472,2183.0,2181.1,0.00503056]
[1770145974940,2.36040472,2182.2,2179.3,2.57668783]
[1770145975134,0.22927,2183.4,2179.0,3.69533731]
[1770145975135,2.36040472,2182.8,2179.5,3.69533731]
[1770145975339,2.36040472,2182.8,2179.0,6.50174514]
[1770145975340,2.36040472,2182.8,2180.1,3.69533731]
[1770145975639,2.36040472,2182.8,2180.2,3.69533731]
[1770145975836,2.36040472,2182.5,2180.2,0.00387447]
[1770145976040,2.36040472,2182.5,2180.3,2.37889393]
[1770145976340,2.36040472,2182.0,2180.3,2.37889393]
[1770145976538,2.36480307,2181.6,2180.2,0.00387447]
[1770145976840,0.00439835,2180.9,2179.2,2.37889393]
[1770145977144,3.676,2180.9,2179.2,2.37889393]
[1770145977340,6.03640472,2181.8,2179.4,2.37889393]
[1770145977639,2.36040472,2181.7,2179.4,2.38274103]
[1770145978046,3.676,2181.8,2179.4,2.38274103]
[1770145978047,2.58994472,2180.8,2179.4,0.0038471]
[1770145978247,2.36040472,2180.7,2179.4,0.0038471]
[1770145978740,0.00439835,2180.1,2179.3,0.70998587]
[1770145978945,0.2296,2180.2,2179.3,0.22419587]
[1770145979145,0.00439835,2179.8,2179.3,0.22419587]
[1770145979347,3.69533731,2180.9,2177.6,2.37889393]
[1770145979348,2.36040472,2179.6,2177.6,2.37889393]
[1770145979540,2.59009472,2179.3,2177.6,2.37889393]
[1770145979746,6.03540472,2179.2,2177.6,2.38378727]
[1770145979939,2.59013472,2179.0,2177.6,0.00489334]
[1770145980145,0.00439835,2178.4,2177.6,0.00489334]
[1770145980344,2.59020472,2178.3,2176.6,2.37889393]
[1770145980545,2.59020472,2178.3,2175.5,7.37033731]
[1770145980546,2.36040472,2178.0,2175.6,2.37889393]
[1770145980749,2.36040472,2177.8,2175.6,2.37889393]
[1770145980945,2.36040472,2177.6,2175.6,2.37889393]
[1770145981246,0.00522783,2177.6,2176.2,2.37889393]
[1770145981450,0.00522783,2177.6,2175.8,2.37889393]
[1770145981650,2.36563255,2177.6,2175.8,2.37889393]
[1770145981946,0.00439501,2177.2,2175.6,0.00354435]
[1770145982145,2.36479973,2177.0,2175.6,0.00354435]
[1770145982444,2.36040472,2176.8,2175.6,0.00354435]
[1770145982648,0.00439501,2176.9,2175.6,0.00354435]
[1770145982951,2.59037472,2176.7,2175.6,0.00354435]
[1770145983149,0.00439501,2176.3,2174.8,2.37889393]
[1770145983449,2.36040472,2175.3,2173.7,9.94203151]
[1770145983748,2.36040472,2175.3,2172.3,0.23043]
[1770145983749,2.36040472,2174.9,2171.9,3.69533731]
[1770145984043,2.59062472,2174.4,2171.9,3.92580731]
[1770145984249,2.36040472,2174.0,2171.9,0.00382971]
[1770145984450,2.36479973,2174.0,2171.9,0.00382971]
[1770145984652,2.36040472,2174.2,2171.9,0.00382971]
[1770145984949,2.36040472,2174.1,2172.1,3.69533731]
[1770145985148,2.11040472,2174.1,2172.0,2.37889393]
[1770145985345,2.11040472,2174.1,2172.2,2.37889393]
[1770145985748,0.00439501,2174.0,2172.2,2.37889393]
[1770145985946,3.69533731,2177.0,2174.0,2.37889393]
[1770145986150,0.23001,2176.3,2173.6,2.60918393]
[1770145986342,3.69533731,2176.9,2173.0,2.37889393]
[1770145986343,3.69533731,2175.4,2173.0,2.37889393]
[1770145986547,3.69533731,2174.9,2172.4,2.37889393]
[1770145986746,2.696,2175.2,2172.7,2.37889393]
[1770145986942,7.802,2175.1,2172.7,2.37889393]
[1770145987150,7.802,2175.1,2172.7,0.00387001]
[1770145987151,2.36040472,2174.3,2172.7,0.00387001]
[1770145987544,3.678,2174.2,2172.7,0.00387001]
[1770145988049,2.36040472,2175.1,2173.2,2.37889393]
[1770145988246,2.36040472,2174.6,2172.7,2.38276394]
[1770145988449,2.36040472,2174.4,2172.7,2.38276394]
[1770145988649,3.678,2174.3,2172.7,2.38276394]
[1770145988852,2.36040472,2174.2,2172.7,0.00387001]
[1770145989155,2.59066472,2173.9,2172.7,0.00387001]
[1770145989853,2.59069472,2173.7,2171.7,2.37889393]
[1770145990943,2.59069472,2173.7,2171.7,2.38260331]
[1770145991453,2.36040472,2173.5,2171.7,2.38260331]
[1770145991752,2.36607307,2173.5,2171.7,2.38260331]
[1770145991949,2.36040472,2173.3,2171.7,0.00370938]
[1770145992152,6.04040472,2173.2,2171.7,0.00370938]
[1770145992351,2.36040472,2173.1,2171.7,0.00370938]
[1770145992853,2.36040472,2172.9,2171.7,0.00370938]
[1770145993054,2.36040472,2172.6,2171.7,0.00370938]
[1770145993453,3.68,2172.5,2171.7,0.00370938]
[1770145993648,3.681,2172.9,2171.7,0.00370938]
[1770145993854,2.36040472,2172.8,2171.7,0.00370938]
[1770145994355,0.23036,2173.0,2171.7,0.00370938]
[1770145994655,2.59078472,2172.8,2171.7,0.00370938]
[1770145994856,2.36040472,2172.8,2171.7,0.00370938]
[1770145995157,2.36040472,2172.7,2171.7,0.00370938]
[1770145995451,2.36040472,2172.5,2170.9,2.37889393]
[1770145995655,6.04140472,2172.5,2170.9,2.60946393]
[1770145996155,2.36040472,2172.5,2171.0,2.60945393]
[1770145996352,3.681,2172.8,2171.2,2.37889393]
[1770145996554,2.36040472,2173.4,2171.7,2.37889393]
[1770145996758,0.22991,2177.2,2171.1,3.69533731]
[1770145996759,2.36040472,2174.4,2172.6,2.37889393]
[1770145996956,0.23009,2175.5,2173.5,0.23029]
[1770145997156,3.682,2175.5,2173.7,2.37889393]
[1770145997366,3.682,2175.5,2172.7,4.95857509]
[1770145997367,3.682,2175.5,2173.5,2.37889393]
[1770145997654,0.23015,2175.0,2173.5,2.38331476]
[1770145998555,2.59622307,2175.0,2173.5,2.38331476]
[1770145998760,0.0053318,2175.5,2173.8,2.37889393]
[1770145999062,0.0053318,2175.5,2174.4,2.60910393]
[1770145999663,2.36607307,2175.4,2173.9,2.37889393]
[1770145999855,2.37140487,2175.5,2173.6,2.37889393]
[1770146000058,2.37140487,2175.5,2173.5,2.38331476]
[1770146000059,2.36040472,2175.4,2173.5,2.38331476]
[1770146000261,0.0053318,2175.5,2173.5,2.38331476]
[1770146000559,4.065,2176.4,2173.5,2.38331476]
[1770146000560,2.4554028,2176.5,2174.7,2.39673693]
[1770146000765,2.4554028,2176.5,2174.9,2.39673693]
[1770146000966,0.23,2176.4,2174.9,2.39673693]
[1770146001161,2.59608307,2176.3,2174.9,2.39673693]
[1770146001363,2.36607307,2175.9,2174.4,2.39673693]
[1770146001666,2.36607307,2175.8,2174.4,2.39673693]
[1770146001861,0.00555225,2175.9,2174.4,2.39673693]
[1770146002160,2.37162532,2175.9,2174.4,2.39673693]
[1770146002359,0.00555225,2175.9,2174.7,2.39673693]
[1770146002560,29.46833731,2177.6,2175.8,2.39673693]
[1770146002561,2.4554028,2177.4,2175.8,2.39673693]
[1770146002757,3.681,2177.6,2176.0,2.39673693]
[1770146002960,2.4554028,2177.9,2176.0,2.39673693]
[1770146003159,2.4554028,2178.4,2176.7,2.62669693]
[1770146003665,3.92498731,2179.7,2177.2,2.39673693]
[1770146003863,3.92498731,2179.7,2177.8,2.39673693]
[1770146003864,3.681,2179.6,2177.8,2.39673693]
[1770146004062,2.36607307,2179.5,2176.8,5.28705829]
[1770146004365,3.681,2179.4,2176.9,2.39673693]
[1770146004560,0.22977,2178.6,2176.9,2.39673693]
[1770146004867,0.22984,2177.9,2176.7,2.40139539]
[1770146005066,0.0041601,2178.6,2176.9,2.39673693]
[1770146005268,0.0041601,2178.6,2177.1,2.39673693]
[1770146005466,0.22968,2179.4,2177.5,2.39673693]
[1770146005664,3.021,2180.1,2177.5,2.39673693]
[1770146005665,2.4554028,2179.1,2177.5,2.39673693]
[1770146005968,0.22984,2177.9,2176.7,0.00465846]
[1770146006266,0.22988,2177.5,2176.7,8.46e-06]
[1770146006464,0.22988,2177.5,2174.7,3.81920524]
[1770146006465,0.22997,2176.7,2174.4,9.89071509]
[1770146006656,0.22992,2177.2,2174.4,9.66051509]
[1770146006860,3.679,2177.4,2175.4,0.2301]
[1770146007057,3.679,2177.4,2174.6,2.54970227]
[1770146007058,3.679,2177.3,2175.5,0.23009]
[1770146007261,3.679,2177.3,2174.9,3.679]
[1770146007564,3.68496135,2177.3,2175.4,0.2301]
[1770146007765,6.14036415,2177.3,2175.5,2.39673693]
[1770146008070,0.00596135,2177.3,2175.5,2.39673693]
[1770146008258,0.00596135,2177.3,2175.9,2.39673693]
[1770146008463,2.4554028,2178.2,2176.2,2.39673693]
[1770146008766,3.679,2178.4,2176.6,2.39673693]
[1770146008973,2.6851428,2178.9,2176.8,2.39673693]
[1770146009266,3.679,2178.8,2176.8,2.39673693]
[1770146009566,3.68482767,2178.8,2176.8,2.40227267]
[1770146009762,2.4554028,2180.8,2178.3,2.39673693]
[1770146010067,2.4554028,2180.6,2178.4,2.39673693]
[1770146010361,0.2295,2181.1,2178.8,0.22974]
[1770146010563,0.2295,2181.1,2178.4,2.39673693]
[1770146010564,2.4554028,2183.0,2180.2,2.39673693]
[1770146010765,0.00533471,2183.0,2180.7,2.39673693]
[1770146010965,0.00533471,2183.0,2181.4,2.39673693]
[1770146011671,6.15600062,2184.1,2181.8,0.22942]
[1770146011870,6.15600062,2184.1,2181.9,2.39673693]
[1770146011871,0.22927,2183.3,2181.9,2.39673693]
[1770146012069,4.82147587,2183.1,2180.9,2.39673693]
[1770146012266,3.70059782,2184.1,2180.9,2.39673693]
[1770146012267,2.6846528,2183.6,2180.9,2.62625693]
[1770146012470,0.00348345,2183.6,2182.1,2.39673693]
[1770146012672,0.00348345,2183.6,2181.0,9.15667609]
[1770146012673,0.02259782,2184.1,2182.3,2.62610693]
[1770146012872,0.02259782,2184.1,2182.7,2.39673693]
[1770146013068,2.36607307,2185.6,2183.1,2.39673693]
[1770146013268,0.22886,2187.3,2183.5,2.39673693]
[1770146013470,3.676,2187.2,2183.5,2.39673693]
[1770146013765,2.36607307,2187.1,2184.0,2.62592693]
[1770146013971,3.68130463,2187.2,2184.0,2.39673693]
[1770146014169,3.68130463,2187.2,2184.3,2.39673693]
[1770146014170,0.22899,2186.1,2184.3,2.39673693]
[1770146014471,0.22887,2187.1,2183.5,2.40200506]
[1770146014472,6.617,2186.0,2183.5,2.40200506]
[1770146014674,3.675,2185.9,2183.5,2.40200506]
[1770146014971,3.6891556,2186.6,2183.5,2.40200506]
[1770146015171,1.10903491,2184.6,2182.4,2.39673693]
[1770146015375,3.674,2184.8,2182.4,2.39673693]
[1770146015674,4.84127965,2184.7,2182.4,2.39673693]
[1770146015873,0.22923,2183.7,2182.4,2.39673693]
[1770146016069,1.16727965,2183.0,2181.3,2.39673693]
[1770146016270,1.16727965,2183.0,2180.8,2.39673693]
[1770146016271,0.22938,2182.3,2180.8,2.39673693]
[1770146016471,3.673,2182.7,2180.8,2.39673693]
[1770146016771,2.36607307,2182.7,2180.8,2.39673693]
[1770146017071,0.00406629,2183.0,2180.8,2.39673693]
[1770146017072,1.40065594,2183.0,2180.8,2.39673693]
[1770146017270,2.36607307,2182.5,2180.8,2.40048633]
[1770146017471,3.90137,2182.4,2180.8,2.40048633]
[1770146017671,0.00406629,2183.0,2181.3,2.39673693]
[1770146017867,2.36607307,2182.9,2181.3,2.39673693]
[1770146018069,0.22898,2186.1,2183.4,0.22926]
[1770146018273,0.22872,2188.6,2183.4,0.22926]
[1770146018274,1.38892992,2187.1,2183.9,2.39673693]
[1770146018468,1.38892992,2187.1,2184.4,0.22915]
[1770146018670,3.672,2187.7,2184.1,2.39673693]
[1770146018671,0.22893,2186.6,2184.1,2.39673693]
[1770146018868,1.16005992,2186.8,2184.3,2.39673693]
[1770146018869,0.22894,2186.5,2184.3,2.39673693]
[1770146019073,0.00514463,2186.5,2184.3,2.40244769]
[1770146019274,2.3712177,2186.5,2184.3,2.40244769]
[1770146019477,2.36607307,2186.3,2184.3,2.40244769]
[1770146019669,2.36607307,2185.9,2184.3,2.40244769]
[1770146019871,0.87266808,2186.0,2184.3,0.00571076]
[1770146020073,0.22909,2185.1,2183.1,2.39673693]
[1770146020275,3.671,2185.0,2183.1,2.39673693]
[1770146020472,0.87266808,2185.6,2183.1,2.39673693]
[1770146020473,3.671,2185.4,2183.1,2.39673693]
[1770146020674,2.4554028,2184.9,2180.6,2.51737422]
[1770146020978,0.22921,2183.9,2180.6,3.67]
[1770146021276,2.4554028,2183.3,2181.4,0.90817176]
[1770146021473,0.2293,2183.0,2181.4,0.90817176]
[1770146021676,2.46082886,2183.3,2181.4,0.90817176]
[1770146022173,0.2293,2183.0,2181.4,0.90817176]
[1770146022376,0.22931,2182.9,2181.4,0.90817176]
[1770146022678,3.9182656,2184.8,2181.4,0.90817176]
[1770146022679,2.4554028,2184.4,2182.1,2.62612693]
[1770146023078,2.4554028,2184.4,2182.1,2.39673693]
[1770146023280,0.2288,2187.8,2182.1,2.39673693]
[1770146023281,2.4554028,2185.0,2182.1,2.39673693]
[1770146023480,2.4554028,2185.0,2183.0,2.39673693]
[1770146023779,2.45904345,2185.0,2183.0,2.40171546]
[1770146024079,0.00364065,2185.0,2183.0,2.40171546]
[1770146024277,2.45904345,2185.0,2183.2,2.39673693]
[1770146024471,2.4554028,2184.7,2183.0,0.00497853]
[1770146024872,2.6845228,2184.7,2183.0,0.00497853]
[1770146025078,0.22913,2184.6,2183.0,0.00497853]
[1770146025977,0.00364065,2185.0,2183.3,2.39673693]
[1770146026475,2.45904345,2185.0,2183.3,2.39673693]
[1770146026679,2.45904345,2185.0,2183.0,0.00497853]
[1770146026881,2.45904345,2185.0,2183.0,2.40171546]
[1770146027282,0.22916,2184.4,2183.0,0.00497853]
[1770146027582,0.22916,2184.4,2181.9,3.668]
[1770146027583,0.22924,2183.6,2181.9,2.39673693]
[1770146027783,2.4554028,2183.8,2181.9,2.39673693]
[1770146027979,0.22924,2183.6,2181.9,2.39673693]
[1770146028280,2.4554028,2184.2,2181.9,2.39673693]
[1770146028480,0.22926,2183.4,2181.9,2.40033135]